bitfinex-derivatives/quotes_BTCF0:USTF0_20251111
["timestamp","ask_amount","ask_price","bid_price","bid_amount"]
[1762867786539,0.43420384,104360.0,104350.0,0.57976892]
[1762867787840,0.43420384,104360.0,104350.0,0.57876892]
[1762867788046,0.43420384,104360.0,104350.0,0.38111803]
[1762867788233,0.43420384,104360.0,104350.0,0.38211803]
[1762867789945,0.43420384,104360.0,104350.0,0.00219803]
[1762867790246,0.43420384,104360.0,104350.0,0.38115803]
[1762867790548,0.43420384,104360.0,104350.0,0.00219803]
[1762867790846,0.43420384,104360.0,104350.0,0.38099803]
[1762867791641,0.43420384,104360.0,104350.0,0.41178803]
[1762867791937,0.43420384,104360.0,104350.0,0.44094803]
[1762867792139,0.43420384,104360.0,104350.0,0.57567892]
[1762867794248,0.43420384,104360.0,104350.0,0.57667892]
[1762867794438,0.43420384,104360.0,104350.0,0.67451572]
[1762867794640,0.43420384,104360.0,104350.0,0.68591572]
[1762867794848,0.35014384,104360.0,104350.0,0.68491572]
[1762867795244,0.12014384,104360.0,104350.0,0.68391572]
[1762867795455,0.12014384,104360.0,104350.0,0.92447572]
[1762867795647,0.12014384,104360.0,104350.0,0.97447572]
[1762867795949,0.00014384,104360.0,104350.0,1.83503335]
[1762867796144,0.0782099,104390.0,104380.0,0.05995]
[1762867796350,0.3882099,104390.0,104380.0,0.57511892]
[1762867796844,0.3882099,104390.0,104380.0,0.44038803]
[1762867797143,0.3882099,104390.0,104380.0,0.00219803]
[1762867797352,0.3882099,104390.0,104380.0,0.27391803]
[1762867797544,0.3882099,104390.0,104380.0,0.06214803]
[1762867797848,0.3892099,104390.0,104380.0,0.44034803]
[1762867798440,0.3902099,104390.0,104380.0,0.44034803]
[1762867798642,0.3902099,104390.0,104380.0,0.44038803]
[1762867798837,0.3902099,104390.0,104380.0,0.38039803]
[1762867799242,0.3902099,104390.0,104380.0,0.40710803]
[1762867799444,0.3902099,104390.0,104380.0,0.43312803]
[1762867799841,0.3902099,104390.0,104380.0,0.38039803]
[1762867800450,0.3902099,104390.0,104380.0,0.40710803]
[1762867800847,0.3902099,104390.0,104380.0,0.02890803]
[1762867801052,0.3902099,104390.0,104380.0,0.00219803]
[1762867801248,0.07233,104380.0,104370.0,0.00014384]
[1762867801448,0.41233,104380.0,104370.0,0.37834384]
[1762867801756,0.07233,104350.0,104340.0,0.18746089]
[1762867801951,0.43233,104350.0,104340.0,0.56809892]
[1762867802145,0.43233,104350.0,104340.0,0.18965892]
[1762867802348,0.43233,104350.0,104340.0,0.56825892]
[1762867802546,0.43233,104350.0,104340.0,0.18965892]
[1762867802742,0.43233,104350.0,104340.0,0.56817892]
[1762867802951,0.07247384,104360.0,104350.0,0.05273]
[1762867803154,0.07014384,104360.0,104350.0,0.18965892]
[1762867803358,0.07014384,104360.0,104350.0,0.83505572]
[1762867803655,0.07247384,104360.0,104350.0,0.05492803]
[1762867803847,0.40247384,104360.0,104350.0,0.56833892]
[1762867804155,0.22247384,104360.0,104350.0,0.56833892]
[1762867804448,0.07247384,104360.0,104350.0,0.57033892]
[1762867804654,0.40247384,104360.0,104350.0,0.66617572]
[1762867804852,0.07247384,104360.0,104350.0,0.66617572]
[1762867805044,0.19247384,104360.0,104350.0,0.66717572]
[1762867805248,0.19247384,104360.0,104350.0,0.57133892]
[1762867805648,0.19247384,104360.0,104350.0,0.66717572]
[1762867805649,0.12014384,104360.0,104350.0,0.66717572]
[1762867806046,0.02782384,104360.0,104350.0,0.19265892]
[1762867806244,0.07247384,104360.0,104350.0,0.43648803]
[1762867806551,0.40247384,104360.0,104350.0,0.19265892]
[1762867806752,0.08247384,104360.0,104350.0,0.57113892]
[1762867806941,0.00014384,104360.0,104350.0,0.66697572]
[1762867807150,0.02014384,104360.0,104350.0,0.66697572]
[1762867807652,0.00014384,104360.0,104350.0,0.66697572]
[1762867809160,0.00014384,104360.0,104350.0,0.28849572]
[1762867809347,0.00014384,104360.0,104350.0,0.90621572]
[1762867809749,0.00014384,104360.0,104350.0,0.66665572]
[1762867809750,0.01014384,104360.0,104350.0,0.66665572]
[1762867809950,0.01014384,104360.0,104350.0,0.90621572]
[1762867810151,0.01014384,104360.0,104350.0,0.66665572]
[1762867811056,0.00014384,104360.0,104350.0,0.70665572]
[1762867811451,0.00014384,104360.0,104350.0,0.71901572]
[1762867812850,0.02782384,104360.0,104350.0,0.58317892]
[1762867813056,0.02782384,104360.0,104350.0,0.67901572]
[1762867813561,0.00014384,104360.0,104350.0,0.72901572]
[1762867813960,0.00014384,104360.0,104350.0,0.96857572]
[1762867814553,0.00014384,104360.0,104350.0,0.35085572]
[1762867814860,0.00014384,104360.0,104350.0,0.96853572]
[1762867815062,0.00014384,104360.0,104350.0,0.72897572]
[1762867815262,0.00014384,104360.0,104350.0,0.96853572]
[1762867815758,0.05643384,104360.0,104350.0,0.63313892]
[1762867815961,0.05643384,104360.0,104350.0,0.25501892]
[1762867816148,0.07247384,104360.0,104350.0,0.63313892]
[1762867816861,0.07247384,104360.0,104350.0,0.31786978]
[1762867817053,0.07247384,104360.0,104350.0,0.69598978]
[1762867817253,0.07247384,104360.0,104350.0,0.64598978]
[1762867817459,0.07247384,104360.0,104350.0,0.25550978]
[1762867817659,0.07247384,104360.0,104350.0,0.38331803]
[1762867817862,0.07247384,104360.0,104350.0,0.41002803]
[1762867818063,0.07247384,104360.0,104350.0,0.05792803]
[1762867818460,0.08247384,104360.0,104350.0,0.43604803]
[1762867818664,0.08247384,104360.0,104350.0,0.05792803]
[1762867818961,0.08247384,104360.0,104350.0,0.41002803]
[1762867819158,0.08247384,104360.0,104350.0,0.43604803]
[1762867820063,0.08247384,104360.0,104350.0,0.63362978]
[1762867820657,0.07247384,104360.0,104350.0,0.63162978]
[1762867820963,0.26247384,104360.0,104350.0,0.63262978]
[1762867821167,0.26247384,104360.0,104350.0,0.63162978]
[1762867821666,0.03342536,104360.0,104350.0,0.64874978]
[1762867822064,0.04926536,104360.0,104350.0,0.64874978]
[1762867822262,0.01604,104370.0,104350.0,0.74458658]
[1762867822460,0.06,104370.0,104360.0,0.25526175]
[1762867822668,0.06,104370.0,104360.0,0.35328738]
[1762867822866,0.06,104370.0,104360.0,0.25745978]
[1762867823161,0.12969,104370.0,104360.0,0.62983978]
[1762867824065,0.11385,104370.0,104360.0,0.64695978]
[1762867824263,0.11385,104370.0,104360.0,0.74278738]
[1762867824463,0.12969,104370.0,104360.0,0.64695978]
[1762867824664,0.12969,104370.0,104360.0,0.62983978]
[1762867824863,0.12969,104370.0,104360.0,0.72566738]
[1762867825372,0.15294934,104370.0,104360.0,0.62983978]
[1762867825567,0.12969,104370.0,104360.0,0.62983978]
[1762867825871,0.15270558,104370.0,104360.0,0.62983978]
[1762867826062,0.1527061,104370.0,104360.0,0.62983978]
[1762867826573,0.1527061,104370.0,104360.0,0.63079978]
[1762867826868,0.12969,104370.0,104360.0,0.63079978]
[1762867827169,0.06969,104370.0,104360.0,0.63079978]
[1762867827370,0.38969,104370.0,104360.0,0.63079978]
[1762867827561,0.38969,104370.0,104360.0,0.43321803]
[1762867827871,0.42271123,104370.0,104360.0,0.38127803]
[1762867829663,0.3997012,104370.0,104360.0,0.38027803]
[1762867830769,0.3997012,104370.0,104360.0,0.00219803]
[1762867830971,0.3997012,104370.0,104360.0,0.38027803]
[1762867832767,0.3997012,104370.0,104360.0,0.00219803]
[1762867832967,0.3997012,104370.0,104360.0,0.38027803]
[1762867834364,0.3997012,104370.0,104360.0,0.00219803]
[1762867834571,0.3997012,104370.0,104360.0,0.33651803]
[1762867836278,0.37667997,104370.0,104360.0,0.33651803]
[1762867836673,0.37667997,104370.0,104360.0,0.59847978]
[1762867836879,0.08083997,104370.0,104360.0,0.59847978]
[1762867837270,0.09667997,104370.0,104360.0,0.43217803]
[1762867837470,0.09667997,104370.0,104360.0,0.44929803]
[1762867837670,0.08083997,104370.0,104360.0,0.44929803]
[1762867837970,0.32083997,104370.0,104360.0,0.44929803]
[1762867838574,0.32083997,104370.0,104360.0,0.45029803]
[1762867838776,0.32083997,104370.0,104360.0,0.64787978]
[1762867839672,0.03083997,104370.0,104360.0,0.64787978]
[1762867839873,0.01946892,104370.0,104360.0,0.45029803]
[1762867840078,0.04658892,104370.0,104360.0,0.45029803]
[1762867840279,0.03074892,104370.0,104360.0,0.45029803]
[1762867840773,0.04074892,104370.0,104360.0,0.45029803]
[1762867840979,0.04074892,104370.0,104360.0,0.55808839]
[1762867842183,0.04074892,104370.0,104360.0,0.18004839]
[1762867842386,0.04074892,104370.0,104360.0,0.55804839]
[1762867842877,0.04074892,104370.0,104360.0,0.18004839]
[1762867843070,0.04074892,104370.0,104360.0,0.55804839]
[1762867843477,0.38074892,104370.0,104360.0,0.55804839]
[1762867843780,0.03074892,104370.0,104360.0,0.55804839]
[1762867843977,0.10074892,104370.0,104360.0,0.55804839]
[1762867844182,0.21834928,104370.0,104360.0,0.02982803]
[1762867844382,0.21834928,104370.0,104360.0,0.38119803]
[1762867845076,0.21834928,104370.0,104360.0,0.40782803]
[1762867845077,0.11055892,104370.0,104360.0,0.40782803]
[1762867845679,0.38055892,104370.0,104360.0,0.40778803]
[1762867846378,0.38055892,104370.0,104360.0,0.43209803]
[1762867846784,0.38055892,104370.0,104360.0,0.44921803]
[1762867847183,0.38055892,104370.0,104360.0,0.05413803]
[1762867847390,0.38055892,104370.0,104360.0,0.43209803]
[1762867850982,0.38055892,104370.0,104360.0,0.44787803]
[1762867851980,0.37074892,104370.0,104360.0,0.44787803]
[1762867852181,0.04957384,104380.0,104370.0,0.06527]
[1762867852491,0.13957384,104380.0,104370.0,0.17525839]
[1762867852890,0.38957384,104380.0,104370.0,0.17525839]
[1762867853897,0.34014384,104380.0,104370.0,0.28304875]
[1762867854194,0.05014384,104380.0,104370.0,0.17525839]
[1762867854582,0.05014384,104380.0,104370.0,0.44772437]
[1762867854583,0.00014384,104380.0,104370.0,0.44772437]
[1762867855689,0.01014384,104380.0,104370.0,0.44772437]
[1762867855888,0.00014384,104380.0,104370.0,0.44772437]
[1762867856089,0.00014384,104380.0,104370.0,0.24411551]
[1762867856494,0.01014384,104380.0,104370.0,0.24411551]
[1762867856997,0.05957384,104380.0,104370.0,0.55309839]
[1762867857296,0.03649384,104380.0,104370.0,0.55309839]
[1762867857490,0.01014384,104380.0,104370.0,0.55309839]
[1762867858308,0.37014384,104380.0,104370.0,0.55309839]
[1762867858896,0.37014384,104380.0,104370.0,0.62195551]
[1762867859290,0.37014384,104380.0,104370.0,0.24411551]
[1762867859485,0.37014384,104380.0,104370.0,0.62191551]
[1762867859699,0.37014384,104380.0,104370.0,0.71773401]
[1762867859995,0.00014384,104380.0,104370.0,0.82552437]
[1762867860395,0.01014384,104380.0,104370.0,0.71769401]
[1762867860788,0.01014384,104380.0,104370.0,0.82548437]
[1762867861400,0.05614384,104380.0,104370.0,0.66080875]
[1762867861701,0.03286384,104380.0,104370.0,0.55301839]
[1762867862602,0.01014384,104380.0,104370.0,0.55301839]
[1762867862992,0.01014384,104380.0,104370.0,0.66080875]
[1762867863191,0.01014384,104380.0,104370.0,0.82548437]
[1762867863392,0.01014384,104380.0,104370.0,0.75662725]
[1762867863802,0.01014384,104380.0,104370.0,0.75658725]
[1762867864798,0.0002299,104390.0,104380.0,0.05845]
[1762867865000,0.0002299,104390.0,104380.0,0.16843839]
[1762867865500,0.0002299,104390.0,104380.0,0.26424769]
[1762867865904,0.0012299,104390.0,104380.0,0.66424769]
[1762867866097,0.24967384,104400.0,104390.0,0.1542501]
[1762867866303,0.42967384,104400.0,104390.0,0.64191849]
[1762867866502,0.42967384,104400.0,104390.0,0.71077561]
[1762867866689,0.42967384,104400.0,104390.0,0.81856597]
[1762867866898,0.21301384,104400.0,104390.0,0.81856597]
[1762867867196,0.14169384,104400.0,104390.0,1.40531216]
[1762867867503,0.14169384,104400.0,104390.0,1.31918885]
[1762867867704,0.14169384,104400.0,104390.0,1.1484021]
[1762867867998,0.14369384,104400.0,104390.0,1.31918885]
[1762867868199,0.14369384,104400.0,104390.0,1.07970885]
[1762867868399,0.14369384,104400.0,104390.0,1.31918885]
[1762867868604,0.14169384,104400.0,104390.0,1.08270885]
[1762867868801,0.13969384,104400.0,104390.0,1.82197887]
[1762867868999,0.10303384,104400.0,104390.0,1.87711212]
[1762867869202,0.06493766,104400.0,104390.0,1.87611212]
[1762867869403,0.06493766,104400.0,104390.0,1.49843212]
[1762867869707,0.06493766,104400.0,104390.0,2.81423212]
[1762867870100,0.06493766,104400.0,104390.0,2.57475212]
[1762867870403,0.06493766,104400.0,104390.0,2.81523212]
[1762867870992,0.06493766,104400.0,104390.0,2.74753887]
[1762867871196,0.06493766,104400.0,104390.0,2.57662693]
[1762867871407,0.06493766,104400.0,104390.0,2.81610693]
[1762867871609,0.06493766,104400.0,104390.0,2.81310693]
[1762867871796,0.3608,104410.0,104400.0,0.0957909]
[1762867871998,0.3608,104410.0,104400.0,0.71213422]
[1762867872307,0.3608,104410.0,104400.0,0.95157422]
[1762867872608,0.3608,104410.0,104400.0,2.26821422]
[1762867872799,0.3608,104410.0,104400.0,2.02877422]
[1762867873006,0.3608,104410.0,104400.0,2.26821422]
[1762867873206,0.3608,104410.0,104400.0,2.02877422]
[1762867873401,0.3608,104410.0,104400.0,2.26821422]
[1762867873709,0.3608,104410.0,104400.0,2.02877422]
[1762867874004,0.3608,104410.0,104400.0,2.26821422]
[1762867874209,0.3608,104410.0,104400.0,1.96120965]
[1762867874507,0.3608,104410.0,104400.0,2.08921422]
[1762867874810,0.3608,104410.0,104400.0,1.56562893]
[1762867875002,0.3608,104410.0,104400.0,2.02064965]
[1762867875202,0.3608,104410.0,104400.0,1.71562893]
[1762867875507,0.3608,104410.0,104400.0,2.17064965]
[1762867875707,0.3608,104410.0,104400.0,1.93120965]
[1762867876002,0.3608,104410.0,104400.0,2.2684305]
[1762867876205,0.36063563,104410.0,104400.0,2.6684305]
[1762867876707,0.36063563,104410.0,104400.0,2.4289905]
[1762867876907,0.36063563,104410.0,104400.0,2.6684305]
[1762867877113,0.36063563,104410.0,104400.0,2.4289905]
[1762867877514,0.36063563,104410.0,104400.0,2.6684305]
[1762867877812,0.36063563,104410.0,104400.0,1.3517905]
[1762867878013,0.36063563,104410.0,104400.0,2.6681905]
[1762867878214,0.36063563,104410.0,104400.0,2.4287505]
[1762867878510,0.37516563,104410.0,104400.0,0.9517905]
[1762867878715,0.42116563,104410.0,104400.0,0.99392965]
[1762867878914,0.42116563,104410.0,104400.0,0.99369851]
[1762867879513,0.42116563,104410.0,104400.0,0.52054761]
[1762867880015,0.53884042,104410.0,104400.0,0.11287282]
[1762867880409,0.53884042,104410.0,104400.0,0.49019282]
[1762867880806,0.43116563,104410.0,104400.0,0.59786761]
[1762867881016,0.43116563,104410.0,104400.0,0.51713615]
[1762867881214,0.43116563,104410.0,104400.0,0.00519803]
[1762867881515,0.43116563,104410.0,104400.0,0.003]
[1762867881810,0.06108,104400.0,104390.0,0.00014384]
[1762867882012,0.14108,104400.0,104390.0,0.27082384]
[1762867882715,0.06108,104400.0,104390.0,0.00014384]
[1762867883012,0.40108,104400.0,104390.0,0.33894384]
[1762867883516,0.06108,104380.0,104370.0,0.23043662]
[1762867883716,0.07108,104380.0,104370.0,0.60991465]
[1762867884312,0.07108,104380.0,104370.0,0.51409615]
[1762867885404,0.07108,104380.0,104370.0,0.51509615]
[1762867886314,0.27108,104380.0,104370.0,0.51509615]
[1762867886809,0.27108,104380.0,104370.0,0.51609615]
[1762867888818,0.27108,104380.0,104370.0,0.61191465]
[1762867891123,0.01442,104380.0,104370.0,0.93191465]
[1762867891722,0.01456384,104390.0,104370.0,1.02672303]
[1762867891923,0.01456384,104390.0,104380.0,0.23042742]
[1762867892221,0.00014384,104390.0,104380.0,0.35262545]
[1762867892421,0.00014384,104390.0,104380.0,0.56262545]
[1762867893016,0.01442,104400.0,104390.0,0.0958001]
[1762867893213,0.01442,104400.0,104390.0,0.89981625]
[1762867894416,0.03648,104400.0,104390.0,0.89981625]
[1762867895122,0.03748,104400.0,104390.0,0.89981625]
[1762867895624,0.06208,104400.0,104390.0,0.13681615]
[1762867895921,0.06208,104400.0,104390.0,0.60977625]
[1762867896323,0.03748,104400.0,104390.0,0.60977625]
[1762867896917,0.01542,104400.0,104390.0,0.60977625]
[1762867897122,0.01542,104400.0,104390.0,0.94504627]
[1762867897319,0.01542,104400.0,104390.0,1.03556627]
[1762867898118,0.06208,104400.0,104390.0,0.56261625]
[1762867898325,0.06208,104400.0,104390.0,0.93973625]
[1762867899011,0.07208,104400.0,104390.0,0.93973625]
[1762867899819,0.02542,104400.0,104390.0,0.93973625]
[1762867900019,0.01542,104400.0,104390.0,0.93973625]
[1762867900226,0.01542,104400.0,104390.0,0.93965625]
[1762867900923,0.01542,104400.0,104390.0,1.02037521]
[1762867901124,0.01542,104400.0,104390.0,1.12804375]
[1762867901416,0.01542,104400.0,104390.0,1.08900101]
[1762867901617,0.37530947,104410.0,104400.0,0.0957909]
[1762867901828,0.37530947,104410.0,104400.0,0.27428327]
[1762867902123,0.37530947,104410.0,104400.0,0.61428327]
[1762867902525,0.37530947,104410.0,104400.0,0.82962035]
[1762867902923,0.36077947,104410.0,104400.0,0.94656111]
[1762867903128,0.36077947,104410.0,104400.0,1.01522831]
[1762867903319,0.36177947,104410.0,104400.0,1.01522831]
[1762867903620,0.37619947,104410.0,104400.0,1.11100916]
[1762867904219,0.37519947,104410.0,104400.0,0.87256916]
[1762867904418,0.37619947,104410.0,104400.0,1.11200916]
[1762867904623,0.37619947,104410.0,104400.0,0.87256916]
[1762867905021,0.42285947,104410.0,104400.0,0.13776412]
[1762867905227,0.42185947,104410.0,104400.0,0.002]
[1762867905425,0.42185947,104410.0,104400.0,0.51572412]
[1762867905628,0.43185947,104410.0,104400.0,0.51572412]
[1762867905930,0.43185947,104410.0,104400.0,0.00419803]
[1762867906130,0.43185947,104410.0,104400.0,0.38115803]
[1762867906627,0.43185947,104410.0,104400.0,0.37896]
[1762867906827,0.43185947,104410.0,104400.0,0.002]
[1762867907031,0.04666,104390.0,104380.0,0.06881104]
[1762867907226,0.04666,104390.0,104380.0,0.42762796]
[1762867908022,0.04666,104390.0,104380.0,0.37702384]
[1762867908231,0.05666,104390.0,104380.0,0.37702384]
[1762867908426,0.05666,104390.0,104380.0,3.84e-06]
[1762867908742,0.55686058,104390.0,104360.0,0.0142]
[1762867908930,0.50686058,104390.0,104360.0,0.22919803]
[1762867909228,0.50686058,104390.0,104360.0,0.27754803]
[1762867909431,0.37229449,104390.0,104380.0,0.0142]
[1762867909633,0.35,104390.0,104380.0,0.0152]
[1762867910132,0.75,104390.0,104380.0,0.0152]
[1762867910336,0.75,104390.0,104380.0,0.0142]
[1762867911332,0.752,104390.0,104380.0,0.0142]
[1762867912435,0.352,104390.0,104380.0,0.06522803]
[1762867913230,0.352,104390.0,104380.0,0.00219803]
[1762867913435,0.37424907,104390.0,104380.0,0.00219803]
[1762867913636,0.37424907,104390.0,104370.0,0.04941384]
[1762867913836,0.37424907,104390.0,104380.0,0.01429]
[1762867915936,0.37324907,104390.0,104380.0,0.01429]
[1762867916142,0.351,104390.0,104380.0,0.01429]
[1762867916531,0.37323291,104390.0,104380.0,0.01429]
[1762867916936,0.37423291,104390.0,104380.0,0.01429]
[1762867917141,0.352,104390.0,104380.0,0.01429]
[1762867918640,0.48656609,104390.0,104370.0,0.04307187]
[1762867919144,0.48656609,104390.0,104370.0,0.06784187]
[1762867919340,0.48656609,104390.0,104380.0,0.01541]
[1762867919745,0.48556609,104390.0,104380.0,0.01541]
[1762867920137,0.351,104390.0,104380.0,0.20226412]
[1762867920450,0.101,104390.0,104380.0,0.20226412]
[1762867920749,0.372,104390.0,104380.0,0.20226412]
[1762867920945,0.371,104390.0,104380.0,0.06769803]
[1762867921853,0.372,104390.0,104380.0,0.06769803]
[1762867922447,0.371,104390.0,104380.0,0.06869803]
[1762867923350,0.372,104390.0,104380.0,0.06769803]
[1762867924449,0.372,104390.0,104380.0,0.20226412]
[1762867925651,0.371,104390.0,104380.0,0.20326412]
[1762867926151,0.181,104390.0,104380.0,0.20326412]
[1762867926344,0.181,104390.0,104380.0,0.29907342]
[1762867926550,0.14168,104390.0,104380.0,0.53755342]
[1762867926746,0.10236,104390.0,104380.0,0.29807342]
[1762867926946,0.00014384,104400.0,104390.0,0.1458901]
[1762867927147,0.35014384,104400.0,104390.0,0.65937422]
[1762867928148,0.35014384,104400.0,104390.0,0.56357412]
[1762867928554,0.35014384,104400.0,104390.0,0.65937422]
[1762867929252,0.00014384,104400.0,104390.0,0.66137422]
[1762867929451,0.09014384,104400.0,104390.0,0.66137422]
[1762867929646,0.04823384,104400.0,104390.0,0.56549412]
[1762867929845,0.34823384,104400.0,104390.0,0.43092803]
[1762867930049,0.34823384,104400.0,104390.0,0.56549412]
[1762867930248,0.34823384,104400.0,104390.0,0.56449412]
[1762867930845,0.36134384,104400.0,104390.0,0.05328803]
[1762867931053,0.36134384,104400.0,104390.0,0.27403803]
[1762867931849,0.36134384,104400.0,104390.0,0.40860412]
[1762867932048,0.34823384,104400.0,104390.0,0.43437412]
[1762867932753,0.34923384,104400.0,104390.0,0.43337412]
[1762867933142,0.35023384,104400.0,104390.0,0.43237412]
[1762867933347,0.35023384,104400.0,104390.0,0.29780803]
[1762867933553,0.36234384,104400.0,104390.0,0.24771803]
[1762867933751,0.04809,104390.0,104380.0,0.44206]
[1762867933953,0.41809,104390.0,104380.0,0.44425803]
[1762867934154,0.41809,104390.0,104380.0,0.57882412]
[1762867934459,0.41809,104390.0,104380.0,0.05228803]
[1762867934649,0.41809,104390.0,104380.0,0.35111803]
[1762867934845,0.41809,104390.0,104380.0,0.37643803]
[1762867935050,0.41809,104390.0,104380.0,0.40120803]
[1762867936060,0.41809,104390.0,104380.0,0.02751803]
[1762867936254,0.41809,104390.0,104380.0,0.37875803]
[1762867937159,0.41809,104390.0,104380.0,0.00219803]
[1762867937459,0.0612,104380.0,104370.0,0.00014384]
[1762867937658,0.3212,104380.0,104370.0,0.37886187]
[1762867937960,0.3212,104380.0,104370.0,0.00234187]
[1762867938256,0.3212,104380.0,104370.0,0.18699796]
[1762867938558,0.05809,104380.0,104370.0,0.18699796]
[1762867938961,0.05809,104380.0,104370.0,0.05243187]
[1762867940956,0.24809,104380.0,104370.0,0.05243187]
[1762867941157,0.24809,104380.0,104370.0,0.24999764]
[1762867941956,0.25803,104380.0,104370.0,0.05243187]
[1762867942555,0.25803,104380.0,104370.0,0.00234187]
[1762867942754,0.25803,104380.0,104370.0,0.37882187]
[1762867945257,0.04911,104360.0,104350.0,0.00023957]
[1762867945554,0.13375,104360.0,104350.0,0.00023957]
[1762867945760,0.13375,104360.0,104350.0,0.37667957]
[1762867945949,0.13375,104360.0,104350.0,0.00023957]
[1762867946154,0.13375,104360.0,104340.0,7.808e-05]
[1762867946155,0.04911,104350.0,104340.0,0.37651808]
[1762867946363,0.09911,104350.0,104340.0,0.37871611]
[1762867946857,0.09911,104350.0,104340.0,0.42752611]
[1762867947164,0.09911,104350.0,104340.0,0.44552611]
[1762867948253,0.09911,104350.0,104340.0,0.64609188]
[1762867949262,0.07453,104350.0,104340.0,0.64609188]
[1762867949767,0.05,104350.0,104340.0,0.64609188]
[1762867950158,0.04925384,104360.0,104350.0,0.04881]
[1762867950361,0.10925384,104360.0,104350.0,0.05100803]
[1762867951666,0.06014384,104360.0,104350.0,0.2505738]
[1762867952658,0.06014384,104360.0,104350.0,0.2525738]
[1762867953367,0.10925384,104360.0,104350.0,0.05500803]
[1762867953668,0.10925384,104360.0,104350.0,0.2675738]
[1762867953968,0.10925384,104360.0,104350.0,0.44640803]
[1762867954165,0.12236384,104360.0,104350.0,0.05500803]
[1762867954466,0.10925384,104360.0,104350.0,0.44640803]
[1762867955766,0.10925384,104360.0,104350.0,0.6439738]
[1762867956270,0.10925384,104360.0,104350.0,0.2675738]
[1762867956469,0.10925384,104360.0,104350.0,0.6439338]
[1762867957163,0.08467384,104360.0,104350.0,0.6439338]
[1762867957370,0.06014384,104360.0,104350.0,0.6439338]
[1762867958683,0.06014384,104360.0,104350.0,0.44636803]
[1762867958684,0.10925384,104360.0,104350.0,0.44636803]
[1762867959569,0.08467384,104360.0,104350.0,0.44636803]
[1762867960965,0.08467384,104360.0,104350.0,0.6439338]
[1762867961172,0.02467384,104360.0,104350.0,0.6439338]
[1762867961670,0.03467384,104360.0,104350.0,0.6439338]
[1762867962362,0.01014384,104360.0,104350.0,0.6439338]
[1762867962571,0.00014384,104360.0,104350.0,0.6439338]
[1762867963073,0.01014384,104360.0,104350.0,0.6439338]
[1762867963571,0.07236384,104360.0,104350.0,0.43124803]
[1762867964275,0.07236384,104360.0,104350.0,0.44624803]
[1762867964665,0.05925384,104360.0,104350.0,0.07000803]
[1762867964870,0.05925384,104360.0,104350.0,0.44624803]
[1762867965669,0.27925384,104360.0,104350.0,0.44624803]
[1762867966975,0.27925384,104360.0,104350.0,0.07000803]
[1762867967275,0.27925384,104360.0,104350.0,0.44620803]
[1762867969277,0.27925384,104360.0,104350.0,0.07000803]
[1762867969576,0.27925384,104360.0,104350.0,0.44616803]
[1762867972076,0.27925384,104360.0,104350.0,0.6437338]
[1762867972278,0.23014384,104360.0,104350.0,0.6437338]
[1762867972971,0.23014384,104360.0,104350.0,0.712401]
[1762867973571,0.23124076,104360.0,104350.0,0.712401]
[1762867973875,0.23124076,104360.0,104350.0,0.51483523]
[1762867974069,0.27912374,104360.0,104350.0,0.51483523]
[1762867974475,0.27764384,104360.0,104350.0,0.51483523]
[1762867974678,0.27950672,104360.0,104350.0,0.51483523]
[1762867975079,0.27967068,104360.0,104350.0,0.51483523]
[1762867976476,0.27967068,104360.0,104350.0,0.13867523]
[1762867976781,0.29278068,104360.0,104350.0,0.44604803]
[1762867977269,0.29278068,104360.0,104350.0,0.13867523]
[1762867977467,0.27967068,104360.0,104350.0,0.51471523]
[1762867978276,0.27967068,104360.0,104350.0,0.51467523]
[1762867979682,0.27967068,104360.0,104350.0,0.07000803]
[1762867979982,0.27967068,104360.0,104350.0,0.44596803]
[1762867980174,0.27967068,104360.0,104350.0,0.07000803]
[1762867980376,0.27967068,104360.0,104350.0,0.44596803]
[1762867980576,0.27764384,104360.0,104350.0,0.44596803]
[1762867980875,0.23255303,104360.0,104350.0,0.6435338]
[1762867981077,0.00269581,104360.0,104350.0,0.8342838]
[1762867981272,0.00126167,104360.0,104350.0,1.1433889]
[1762867981473,0.0002299,104390.0,104380.0,0.05621]
[1762867981474,0.0444499,104390.0,104380.0,0.05621]
[1762867981681,0.0202299,104390.0,104380.0,0.6318938]
[1762867982874,0.0212299,104390.0,104380.0,0.6318938]
[1762867983083,0.2212299,104390.0,104380.0,0.6318938]
[1762867983975,0.2222299,104390.0,104380.0,0.6318938]
[1762867984876,0.2222299,104390.0,104380.0,0.9671831]
[1762867985080,0.0022299,104390.0,104380.0,0.7277031]
[1762867985286,0.00014384,104400.0,104390.0,0.1529501]
[1762867985580,0.00014384,104400.0,104390.0,0.36240631]
[1762867985782,3.84e-06,104400.0,104390.0,0.36240631]
[1762867986383,3.84e-06,104400.0,104390.0,0.60188631]
[1762867986680,3.84e-06,104400.0,104390.0,0.60388631]
[1762867987081,3.84e-06,104400.0,104390.0,0.50808621]
[1762867987881,3.84e-06,104400.0,104390.0,0.26860621]
[1762867988083,0.01000384,104400.0,104390.0,0.26860621]
[1762867988276,0.01000384,104400.0,104390.0,0.27060621]
[1762867989073,0.01000384,104400.0,104390.0,0.26860621]
[1762867989276,0.01000384,104400.0,104390.0,0.27060621]
[1762867990275,0.05422384,104400.0,104390.0,0.43902803]
[1762867991481,0.23422384,104400.0,104390.0,0.43702803]
[1762867991682,0.23422384,104400.0,104390.0,0.6355938]
[1762867992682,0.23422384,104400.0,104390.0,0.06234803]
[1762867992880,0.23422384,104400.0,104390.0,0.43794803]
[1762867993278,0.23422384,104400.0,104390.0,0.43694803]
[1762867993483,0.05693384,104400.0,104390.0,0.02526803]
[1762867993681,0.05693384,104400.0,104390.0,0.002]
[1762867993988,0.04422,104390.0,104380.0,0.05621]
[1762867994183,0.28422,104390.0,104380.0,0.43396803]
[1762867995086,0.28422,104390.0,104380.0,0.05840803]
[1762867995283,0.29693,104390.0,104380.0,0.43396803]
[1762867995684,0.29693,104390.0,104380.0,0.43496803]
[1762867996992,0.21422,104390.0,104380.0,0.43496803]
[1762867998095,0.21422,104390.0,104380.0,0.43488803]
[1762867998488,0.22693,104390.0,104380.0,0.42228803]
[1762867998890,0.04422,104380.0,104370.0,0.05635384]
[1762867999094,0.24693,104380.0,104370.0,0.42143187]
[1762867999490,0.24693,104380.0,104370.0,0.43497187]
[1762868000697,0.24693,104380.0,104370.0,0.43597187]
[1762868001994,0.24693,104380.0,104370.0,0.06049187]
[1762868002195,0.24693,104380.0,104370.0,0.39981187]
[1762868002993,0.24693,104380.0,104370.0,0.02441187]
[1762868003201,0.38165048,104380.0,104370.0,0.00214384]
[1762868003403,0.38165048,104380.0,104370.0,0.00069052]
[1762868003705,0.05596,104370.0,104360.0,0.20165]
[1762868003999,0.24596,104370.0,104360.0,0.20384803]
[1762868004193,0.24596,104370.0,104360.0,0.22714803]
[1762868004794,0.24596,104370.0,104360.0,0.04650803]
[1762868005002,0.24596,104370.0,104360.0,0.04750803]
[1762868006297,0.24596,104370.0,104360.0,0.04850803]